bitfinex/quotes_SOLUSD_20240615
["timestamp","ask_amount","ask_price","bid_price","bid_amount"]
[1718478344186,5.56,144.81,144.75,5.9]
[1718478344390,5.56,144.81,144.76,20.0]
[1718478347811,5.56,144.8,144.76,20.0]
[1718478348028,5.56,144.8,144.75,0.34]
[1718478348502,5.56,144.8,144.75,20.0]
[1718478349592,5.56,144.79,144.75,20.0]
[1718478349977,5.56,144.8,144.75,20.0]
[1718478350177,5.56,144.8,144.74,5.56]
[1718478350397,5.56,144.8,144.75,20.0]
[1718478350604,5.56,144.8,144.75,25.56]
[1718478351695,5.56,144.8,144.75,20.0]
[1718478352808,5.56,144.8,144.75,25.56]
[1718478353300,5.56,144.8,144.75,20.0]
[1718478353508,5.56,144.8,144.73,0.34]
[1718478353701,5.56,144.8,144.74,5.56]
[1718478353887,5.56,144.8,144.75,25.56]
[1718478354082,5.56,144.8,144.72,0.51]
[1718478354286,5.56,144.8,144.75,5.56]
[1718478357503,16.3273,144.82,144.75,5.56]
[1718478357706,21.8873,144.82,144.74,0.34]
[1718478357879,21.8873,144.82,144.76,5.56]
[1718478358083,21.8873,144.82,144.77,0.4035194]
[1718478358507,21.8873,144.82,144.76,5.56]
[1718478359398,16.3273,144.82,144.77,5.56]
[1718478361904,16.3273,144.82,144.79,5.56]
[1718478368000,16.3273,144.82,144.78,5.56]
[1718478371627,6.4376,144.84,144.79,5.56]
[1718478371804,6.4376,144.84,144.8,5.56]
[1718478373111,8.9921,144.84,144.79,5.56]
[1718478373316,14.5521,144.84,144.78,5.56]
[1718478373612,19.6612,144.84,144.78,5.56]
[1718478373913,11.9976,144.84,144.78,5.56]
[1718478374104,14.5521,144.84,144.78,5.56]
[1718478374805,11.9976,144.84,144.78,5.56]
[1718478376423,29.4286,144.84,144.76,0.34]
[1718478376599,5.56,144.82,144.76,5.56]
[1718478377031,5.56,144.82,144.77,20.0]
[1718478378032,5.56,144.82,144.77,25.56]
[1718478379412,13.2268,144.78,144.66,37.1777]
[1718478379613,5.56,144.76,144.66,16.4577]
[1718478379919,5.56,144.75,144.7,5.56]
[1718478380123,5.56,144.76,144.7,5.56]
[1718478380619,5.56,144.76,144.71,5.56]
[1718478380914,5.56,144.76,144.72,20.0]
[1718478381428,5.56,144.76,144.71,5.56]
[1718478381608,5.56,144.76,144.7,5.56]
[1718478382632,5.56,144.76,144.71,20.0]
[1718478384555,5.56,144.75,144.71,20.0]
[1718478385442,5.56,144.76,144.71,20.0]
[1718478390036,27.8752,144.76,144.71,20.0]
[1718478393325,27.8752,144.76,130.0,94.913824]
[1718478393326,5.56,144.73,144.67,5.56]
[1718478393644,5.56,144.74,144.67,5.56]
[1718478394267,5.56,144.74,144.63,20.72]
[1718478394541,5.56,144.74,144.68,5.56]
[1718478404551,27.8752,144.73,144.64,20.0]
[1718478404861,5.56,144.72,144.63,20.0]
[1718478405061,5.56,144.72,144.66,5.56]
[1718478405244,5.56,144.72,144.67,20.0]
[1718478405942,5.56,144.7,144.63,0.17]
[1718478406128,5.56,144.7,144.63,0.51]
[1718478406325,5.56,144.7,144.63,0.34]
[1718478406547,5.56,144.7,144.64,5.56]
[1718478407931,5.56,144.7,144.65,20.0]
[1718478408129,5.56,144.69,144.65,20.0]
[1718478408328,5.56,144.69,144.64,5.56]
[1718478408558,5.56,144.69,144.65,20.0]
[1718478411363,21.3707,144.68,144.65,20.0]
[1718478411556,21.3707,144.68,144.63,5.56]
[1718478411761,21.3707,144.68,144.64,20.0]
[1718478412451,15.8107,144.68,144.64,20.0]
[1718478413380,15.8107,144.68,144.62,0.5621476]
[1718478413672,15.8107,144.68,144.63,5.56]
[1718478415874,15.8107,144.68,144.62,0.5621476]
[1718478416050,15.8107,144.68,144.63,5.56]
[1718478419561,21.3707,144.68,144.62,6.1221476]
[1718478419759,21.3707,144.68,144.63,20.0]
[1718478420571,15.8107,144.68,144.63,25.56]
[1718478421455,21.3707,144.68,144.63,25.56]
[1718478423773,21.3707,144.68,144.63,20.0]
[1718478423952,5.56,144.67,144.63,20.0]
[1718478424169,5.56,144.67,144.62,0.5621476]
[1718478425041,5.56,144.66,144.62,0.5621476]
[1718478425241,21.9836,144.65,144.62,0.5621476]
[1718478425672,27.5436,144.65,144.62,0.5621476]
[1718478426060,5.56,144.64,144.62,0.5621476]
[1718478426286,5.56,144.64,144.63,2.5582]
[1718478426855,21.9836,144.65,144.62,0.5621476]
[1718478427095,21.9836,144.65,144.64,2.558]
[1718478427388,27.5436,144.65,144.64,2.558]
[1718478428667,0.17,144.64,144.62,0.5621476]
[1718478428994,5.73,144.63,144.62,0.5621476]
[1718478429201,5.9,144.63,144.62,0.5621476]
[1718478429887,5.73,144.63,144.62,0.5621476]
[1718478430094,21.9836,144.65,144.62,0.5621476]
[1718478430288,5.56,144.63,144.62,0.5621476]
[1718478432891,13.7447,144.63,144.62,0.5621476]
[1718478433192,8.6282,144.63,144.62,0.5621476]
[1718478433493,46.888,144.62,144.56,20.0]
[1718478433686,5.56,144.59,144.53,5.56]
[1718478433895,5.56,144.6,144.54,20.0]
[1718478434103,5.56,144.6,144.54,25.56]
[1718478434387,21.3031,144.62,144.54,25.56]
[1718478434601,26.8631,144.62,144.56,5.56]
[1718478435180,21.3031,144.62,144.56,5.56]
[1718478435516,26.8631,144.62,144.56,5.56]
[1718478435807,5.56,144.61,144.56,5.56]
[1718478436106,5.56,144.6,144.55,5.56]
[1718478436283,5.56,144.6,144.54,25.56]
[1718478436484,28.9783,144.62,144.54,25.56]
[1718478436697,5.56,144.6,144.54,20.0]
[1718478436893,5.56,144.6,144.54,5.56]
[1718478437213,5.56,144.6,144.55,20.0]
[1718478437587,5.56,144.59,144.55,20.0]
[1718478438115,5.56,144.58,144.52,5.56]
[1718478438412,5.56,144.59,144.53,25.56]
[1718478438588,5.56,144.59,144.53,5.56]
[1718478438789,5.56,144.59,144.54,20.0]
[1718478439393,5.56,144.59,144.53,5.56]
[1718478439608,5.56,144.58,144.54,20.0]
[1718478439919,2.7288,144.6,144.54,20.0]
[1718478439920,0.17,144.6,144.54,20.0]
[1718478440093,0.34,144.6,144.53,20.0]
[1718478440424,0.34,144.6,144.48,29.3707044]
[1718478440425,0.17,144.58,144.48,0.8495044]
[1718478440602,5.56,144.55,144.49,5.56]
[1718478441113,5.56,144.53,144.48,0.8495044]
[1718478441422,0.17,144.58,144.43,141.67444584]
[1718478441588,5.56,144.55,144.49,5.56]
[1718478441923,5.56,144.54,144.49,5.56]
[1718478442983,5.56,144.57,144.52,5.56]
[1718478443186,5.56,144.57,144.5,20.34]
[1718478443187,5.56,144.57,144.5,0.34]
[1718478443422,21.3031,144.59,144.51,5.56]
[1718478443423,23.8621,144.59,144.51,5.56]
[1718478443590,5.56,144.57,144.51,5.56]
[1718478445489,21.3031,144.59,144.5,0.17]
[1718478445698,21.3031,144.59,144.49,0.17]
[1718478445699,5.56,144.57,144.52,5.56]
[1718478446720,21.3031,144.59,144.52,5.56]
[1718478446891,5.56,144.57,144.52,5.56]
[1718478448413,5.56,144.57,144.49,0.34]
[1718478448618,5.56,144.56,144.51,5.56]
[1718478449297,21.3031,144.59,144.51,5.56]
[1718478449508,5.56,144.58,144.52,5.9]
[1718478449834,5.56,144.57,144.5,0.17]
[1718478450129,5.56,144.57,144.51,5.56]
[1718478450334,36.6569,144.59,144.5,26.07]
[1718478450335,5.56,144.56,144.5,26.07]
[1718478450521,5.56,144.55,144.5,20.0]
[1718478450730,5.56,144.55,144.5,25.56]
[1718478451322,5.56,144.51,144.4,4.94878806]
[1718478451523,5.56,144.46,144.41,5.56]
[1718478451837,2.7305,144.5,144.42,4.06]
[1718478452040,5.56,144.47,144.42,5.56]
[1718478452322,5.56,144.45,144.36,14.2354]
[1718478452526,5.56,144.45,144.39,5.56]
[1718478452730,5.56,144.45,144.36,14.2354]
[1718478452731,5.56,144.45,144.4,5.56]
[1718478453421,5.56,144.45,144.36,14.2354]
[1718478453730,22.8321,144.46,144.39,5.56]
[1718478454027,5.56,144.45,144.36,14.2354]
[1718478454727,5.56,144.45,144.39,5.56]
[1718478455030,5.56,144.45,144.4,20.0]
[1718478455426,5.56,144.44,144.36,0.17]
[1718478455730,22.8321,144.46,144.36,0.17]
[1718478455731,5.56,144.43,144.38,5.56]
[1718478456227,5.56,144.43,144.36,0.17]
[1718478456433,5.56,144.43,144.38,5.56]
[1718478456617,5.56,144.44,144.38,5.56]
[1718478456803,5.56,144.44,144.39,20.0]
[1718478457013,22.8321,144.46,144.4,5.56]
[1718478457218,5.56,144.45,144.4,5.56]
[1718478457420,10.2425,144.5,144.42,5.56]
[1718478457421,22.8321,144.5,144.42,5.56]
[1718478457638,5.56,144.48,144.42,5.56]
[1718478457826,5.56,144.47,144.41,5.56]
[1718478458033,5.56,144.47,144.42,20.0]
[1718478458643,22.8321,144.5,144.43,5.56]
[1718478458823,22.8321,144.5,144.44,25.56]
[1718478459142,5.56,144.49,144.42,20.34]
[1718478459355,5.56,144.49,144.43,0.51]
[1718478459648,5.56,144.48,144.43,26.07]
[1718478459816,5.56,144.49,144.43,6.07]
[1718478460017,5.56,144.49,144.44,20.0]
[1718478462928,5.56,144.47,144.44,20.0]
[1718478463125,6.4467,144.46,144.33,0.8495044]
[1718478463430,6.2767,144.46,144.41,5.56]
[1718478463924,6.2767,144.46,144.36,6.0693]
[1718478464244,6.2767,144.46,144.41,5.56]
[1718478464856,5.56,144.48,144.42,5.56]
[1718478466459,5.56,144.48,144.37,0.17]
[1718478466632,5.56,144.47,144.41,5.56]
[1718478466833,5.56,144.47,144.42,20.0]
[1718478467147,5.56,144.46,144.42,20.0]
[1718478470137,45.8776,144.5,144.42,20.0]
[1718478470354,5.56,144.47,144.42,20.0]
[1718478471649,33.0743,144.5,144.42,20.0]
[1718478471952,5.56,144.47,144.42,20.0]
[1718478473866,5.56,144.46,144.42,20.0]
[1718478474038,5.56,144.46,144.4,5.9]
[1718478474241,5.56,144.46,144.41,20.0]
[1718478474434,5.56,144.46,144.4,5.9]
[1718478477291,5.56,144.45,144.37,20.0]
[1718478477441,15.3666,144.47,144.38,5.56]
[1718478477750,15.3666,144.47,144.37,25.56]
[1718478477751,5.56,144.43,144.37,25.56]
[1718478478267,7.8565,144.41,144.33,0.8495044]
[1718478478457,5.56,144.38,144.33,0.8495044]
[1718478479152,5.56,144.38,144.33,6.4095044]
[1718478479333,5.56,144.38,144.37,2.5628]
[1718478479547,25.2511,144.42,144.4,2.5622]
[1718478479548,22.6891,144.42,144.4,2.5622]
[1718478479879,5.56,144.41,144.4,2.5623]
[1718478480180,5.56,144.41,144.33,0.8495044]
[1718478480380,5.56,144.39,144.38,2.5626]
[1718478481654,22.6891,144.42,144.34,5.56]
[1718478481969,5.56,144.41,144.35,5.56]
[1718478482304,5.56,144.41,144.4,2.5623]
[1718478482582,5.56,144.41,144.34,5.56]
[1718478482784,5.56,144.4,144.34,5.56]
[1718478482978,5.56,144.4,144.33,1.1895044]
[1718478483182,22.6891,144.42,144.34,5.56]
[1718478483395,22.6891,144.42,144.41,2.5621]
[1718478484173,6.4494,144.42,144.41,2.5621]
[1718478484389,16.2397,144.45,144.37,5.56]
[1718478484390,22.6891,144.45,144.37,5.56]
[1718478484691,22.6891,144.45,144.35,0.51]
[1718478484692,22.6891,144.45,144.4,5.56]
[1718478485354,6.4494,144.49,144.41,5.56]
[1718478485557,9.0101,144.49,144.42,5.56]
[1718478485855,5.56,144.47,144.42,5.56]
[1718478486250,5.56,144.46,144.38,0.34]
[1718478486481,5.56,144.45,144.4,5.56]
[1718478486885,7.6829,144.48,144.38,0.34]
[1718478487090,2.5611,144.47,144.38,0.34]
[1718478488086,7.6829,144.48,144.38,0.34]
[1718478488299,15.3656,144.48,144.38,0.34]
[1718478488670,2.561,144.48,144.38,0.34]
[1718478489166,0.17,144.47,144.38,0.17]
[1718478489370,0.17,144.47,144.37,0.17]
[1718478489371,23.2202,144.47,144.36,20.0]
[1718478489564,0.17,144.45,144.36,20.0]
[1718478490273,0.17,144.45,144.33,23.7875044]
[1718478490274,7.8543,144.45,144.34,20.0]
[1718478490460,7.6848,144.44,144.34,20.0]
[1718478490662,2.562,144.42,144.34,20.0]
[1718478490859,15.5404,144.42,144.33,17.4123044]
[1718478491493,15.5404,144.42,144.39,2.5623]
[1718478491695,15.5404,144.42,144.4,2.5623]
[1718478492277,0.17,144.41,144.39,2.5623]
[1718478492475,0.17,144.39,144.33,0.8495044]
[1718478492773,29.9097,144.41,144.37,2.5627]
[1718478492963,6.5099,144.41,144.33,0.8495044]
[1718478493589,6.5099,144.45,144.42,2.5618]
[1718478493797,6.5099,144.45,144.33,0.8495044]
[1718478494095,6.5099,144.45,144.43,2.5617]
[1718478494461,9.0713,144.45,144.35,0.17]
[1718478494686,6.5099,144.45,144.35,0.17]
[1718478494876,6.5099,144.45,144.35,20.17]
[1718478495061,6.5099,144.45,144.36,0.51]
[1718478495263,14.1942,144.45,144.36,0.51]
[1718478495461,14.1942,144.45,144.36,20.51]
[1718478495462,9.0713,144.45,144.36,20.51]
[1718478495688,6.5099,144.45,144.36,0.51]
[1718478496864,9.0713,144.45,144.36,0.51]
[1718478497577,14.1942,144.45,144.36,0.51]
[1718478498673,14.1943,144.45,144.36,0.51]
[1718478499070,0.17,144.44,144.33,20.8495044]
[1718478499372,15.5419,144.42,144.33,20.8495044]
[1718478499599,0.17,144.42,144.34,20.0]
[1718478499765,0.17,144.4,144.33,0.8495044]
[1718478500379,0.17,144.4,144.38,2.5626]
[1718478500584,0.17,144.4,144.33,0.8495044]
[1718478500585,0.17,144.4,144.37,2.5627]
[1718478500773,0.17,144.4,144.33,0.8495044]
[1718478500968,0.17,144.4,144.37,2.5627]
[1718478501467,5.2947,144.4,144.36,2.5629]
[1718478501665,2.7325,144.39,144.36,2.563]
[1718478502696,2.7325,144.39,144.33,0.8495044]
[1718478502697,35.0244,144.42,144.33,0.8495044]
[1718478502896,106.5099,144.45,144.4,2.5622]
[1718478502897,5.1234,144.44,144.4,2.5622]
[1718478503198,32.1252,144.45,144.41,2.562]
[1718478503385,2.5616,144.44,144.41,2.562]
[1718478503693,29.5632,144.45,144.34,0.17]
[1718478503896,9.0714,144.45,144.34,0.51]
[1718478504392,14.1943,144.45,144.34,0.51]
[1718478504592,6.5099,144.45,144.34,0.51]
[1718478504888,23.0569,144.43,144.33,0.8495044]
[1718478505099,2.5621,144.41,144.33,0.8495044]
[1718478505295,2.5621,144.41,144.38,2.5626]
[1718478505500,23.0564,144.43,144.39,2.5624]
[1718478505695,23.0552,144.44,144.4,2.5622]
[1718478506005,2.5616,144.44,144.41,2.562]
[1718478506182,29.5637,144.45,144.41,2.562]
[1718478506568,29.5637,144.45,144.33,0.8495044]
[1718478506569,7.6849,144.44,144.34,0.17]
[1718478506772,7.6849,144.44,144.34,0.68]
[1718478506988,2.5617,144.44,144.34,0.68]
[1718478507907,7.6849,144.44,144.34,0.68]
[1718478508206,15.3697,144.44,144.34,0.68]
[1718478508611,7.6849,144.44,144.34,0.68]
[1718478508906,25.7883,144.43,144.34,0.51]
[1718478509111,2.5619,144.42,144.33,0.8495044]
[1718478509281,25.7883,144.43,144.39,2.5623]
[1718478509486,2.5619,144.42,144.39,2.5623]
[1718478510082,5.2935,144.43,144.4,2.5621]
[1718478510290,0.17,144.44,144.4,2.5622]
[1718478510498,7.6854,144.43,144.33,0.8495044]
[1718478510815,7.8559,144.42,144.39,2.5624]
[1718478511319,7.8559,144.42,144.38,2.5625]
[1718478511480,0.17,144.42,144.39,2.5624]
[1718478512008,2.7319,144.42,144.39,2.5624]
[1718478512184,0.17,144.42,144.39,2.5624]
[1718478513141,2.732,144.42,144.39,2.5624]
[1718478513409,7.8559,144.42,144.39,2.5624]
[1718478513990,2.732,144.42,144.39,2.5624]
[1718478514415,0.17,144.42,144.4,2.5623]
[1718478514713,15.5404,144.46,144.43,2.5616]
[1718478514884,2.561,144.48,144.36,20.17]
[1718478515083,7.6828,144.48,144.45,2.5614]
[1718478515306,7.6828,144.48,144.37,0.51]
[1718478515307,31.8884,144.49,144.37,0.51]
[1718478515489,8.841,144.49,144.38,0.17]
[1718478515694,31.8877,144.49,144.38,0.17]
[1718478515915,6.2802,144.49,144.38,0.17]
[1718478516102,15.7756,144.5,144.39,16.0809]
[1718478516295,15.7756,144.5,144.4,20.51]
[1718478516614,15.7756,144.5,144.4,20.34]
[1718478516794,31.139,144.5,144.4,20.34]
[1718478516989,2.5607,144.49,144.4,20.34]
[1718478517689,0.17,144.48,144.4,20.34]
[1718478517912,2.7309,144.48,144.4,20.34]
[1718478518726,0.17,144.48,144.4,20.34]
[1718478520205,0.17,144.49,144.4,20.34]
[1718478520930,2.7307,144.49,144.4,20.34]
[1718478521111,0.17,144.49,144.4,20.34]
[1718478522097,2.7307,144.49,144.4,20.34]
[1718478522823,5.2915,144.49,144.4,20.34]
[1718478522992,0.17,144.49,144.4,20.17]
[1718478523804,2.7307,144.49,144.4,20.17]
[1718478524011,0.17,144.49,144.4,20.17]
[1718478524409,2.7307,144.49,144.4,20.17]
[1718478524917,16.92,144.51,144.41,6.6273]
[1718478525131,19.4803,144.51,144.42,0.34]
[1718478525300,2.5606,144.5,144.42,0.34]
[1718478525498,2.5606,144.5,144.42,0.17]
[1718478527211,2.7307,144.49,144.41,6.4573]
[1718478527523,7.8523,144.49,144.41,6.4573]
[1718478528126,15.5345,144.49,144.41,6.4573]
[1718478528422,2.7308,144.49,144.41,6.4573]
[1718478529800,7.8522,144.49,144.41,6.4573]
[1718478530313,15.5344,144.49,144.41,6.4573]
[1718478530523,2.5609,144.48,144.41,6.4573]
[1718478530708,25.7773,144.49,144.41,6.4573]
[1718478531421,2.5609,144.48,144.41,6.4573]
[1718478532002,25.7773,144.49,144.41,6.4573]
[1718478532835,5.64,144.46,144.41,6.4573]
[1718478536926,7.6818,144.5,144.41,12.0973]
[1718478537228,5.64,144.47,144.41,12.0973]
[1718478540038,7.15596469,144.51,144.41,12.0973]
[1718478540235,7.8517,144.5,144.41,12.0973]
[1718478540537,5.64,144.46,144.4,20.34]
[1718478540738,5.64,144.46,144.4,25.98]
[1718478541925,5.64,144.46,144.4,20.34]
[1718478542230,5.64,144.46,144.41,5.64]
[1718478544143,0.17,144.5,144.39,16.0809]
[1718478544144,12.8075,144.45,144.39,16.0809]
[1718478544317,5.64,144.42,144.39,16.0809]
[1718478544525,0.17,144.45,144.39,16.0809]
[1718478545038,5.64,144.43,144.39,16.0809]
[1718478545631,2.7315,144.45,144.39,16.0809]
[1718478545925,5.64,144.43,144.39,16.0809]
[1718478549833,5.64,144.42,144.37,6.4228]
[1718478550630,5.64,144.41,144.37,6.4228]
[1718478552512,100.17,144.45,144.35,16.4561]
[1718478552714,5.64,144.39,144.35,16.4561]
[1718478553342,5.64,144.39,144.38,2.5626]
[1718478554050,25.7888,144.43,144.35,16.4561]
[1718478554339,2.5615,144.45,144.36,5.64]
[1718478554535,5.64,144.43,144.41,2.5619]
[1718478554933,5.64,144.42,144.41,2.562]
[1718478555545,5.64,144.43,144.41,2.562]
[1718478555920,5.64,144.43,144.37,5.64]
[1718478560544,7.6843,144.45,144.37,5.64]
[1718478560746,5.64,144.42,144.37,11.6766]
[1718478560922,5.64,144.43,144.37,11.6766]
[1718478561520,21.20817781,144.47,144.39,5.64]
[1718478561723,20.4883,144.48,144.4,16.3879]
[1718478561944,5.64,144.46,144.4,22.0279]
[1718478562523,5.64,144.45,144.4,16.3879]
[1718478562732,5.64,144.46,144.4,22.0279]
[1718478563735,5.64,144.45,144.4,16.3879]
[1718478564850,7.16366384,144.49,144.4,16.3879]
[1718478565050,0.17,144.49,144.4,22.0279]
[1718478565251,5.64,144.46,144.4,22.0279]
[1718478566031,15.3654,144.48,144.41,0.34]
[1718478566233,5.64,144.46,144.41,0.34]
[1718478566447,8.2012,144.46,144.4,22.0279]
[1718478566624,5.64,144.45,144.4,16.3879]
[1718478567632,0.17,144.49,144.4,16.3879]
[1718478567836,15.3657,144.48,144.4,16.3879]
[1718478568045,5.1219,144.48,144.4,16.3879]
[1718478568249,5.64,144.46,144.4,22.0279]
[1718478570561,5.64,144.43,144.4,16.3879]
[1718478571864,5.64,144.42,144.37,6.0366]
[1718478572244,5.64,144.41,144.36,15.5596]
[1718478572451,5.64,144.4,144.36,15.5596]
[1718478572851,5.64,144.41,144.36,15.5596]
[1718478574435,5.64,144.41,144.4,2.5622]
[1718478590463,0.17,144.44,144.42,2.5618]
[1718478590770,5.64,144.43,144.41,2.5619]
[1718478590972,5.64,144.43,144.42,2.5619]
[1718478591277,5.64,144.43,144.37,5.64]
[1718478592868,5.64,144.42,144.36,21.1996]
[1718478593067,5.64,144.42,144.36,15.5596]
[1718478593267,5.64,144.42,144.36,21.1996]
[1718478594482,5.64,144.43,144.36,21.1996]
[1718478597390,5.64,144.43,144.37,0.17]
[1718478597689,5.64,144.42,144.36,21.1996]
[1718478597881,5.64,144.41,144.36,15.5596]
[1718478598593,5.64,144.41,144.4,2.5621]
[1718478602498,8.2021,144.41,144.31,15.5938]
[1718478602678,5.64,144.38,144.32,20.0]
[1718478603020,5.64,144.36,144.31,15.5938]
[1718478603306,5.64,144.36,144.35,2.5631]
[1718478603601,5.64,144.36,144.3,6.0969]
[1718478603602,5.64,144.36,144.26,15.5938]
[1718478603769,8.203,144.36,144.34,2.5633]
[1718478603965,25.7976,144.38,144.35,2.5631]
[1718478604169,5.64,144.36,144.34,2.5632]
[1718478604397,5.64,144.35,144.34,2.5633]
[1718478609176,5.64,144.35,144.33,3.4130044]
[1718478609476,5.64,144.34,144.33,3.4130044]
[1718478611208,5.64,144.34,144.33,0.8495044]
[1718478611709,5.64,144.34,144.33,3.4130044]
[1718478612601,19.0506,144.36,144.34,2.5633]
[1718478612775,5.81,144.35,144.33,3.4129044]
[1718478612975,5.64,144.34,144.33,3.4129044]
[1718478613873,5.64,144.34,144.33,2.9129044]
[1718478614070,0.17,144.35,144.33,2.9129044]
[1718478614292,5.64,144.34,144.33,2.9129044]
[1718478617705,8.3733,144.34,144.33,0.3495044]
[1718478618005,8.3733,144.34,144.18,21.6089]
[1718478618006,5.1287,144.29,144.18,21.6089]
[1718478618310,5.64,144.26,144.18,21.6089]
[1718478618672,5.64,144.26,144.19,6.4895044]
[1718478619809,5.64,144.24,144.19,0.8495044]
[1718478619994,5.64,144.23,144.19,0.8495044]
[1718478620202,5.64,144.23,144.19,0.3495044]
[1718478620504,25.82494083,144.33,144.19,0.3495044]
[1718478620687,25.82494083,144.33,144.24,5.64]
[1718478620688,5.64,144.3,144.24,5.64]
[1718478620890,23.0788,144.36,144.25,15.1422]
[1718478621088,5.64,144.33,144.27,5.64]
[1718478621303,5.64,144.32,144.25,15.1422]
[1718478621504,5.64,144.32,144.26,5.64]
[1718478621678,5.64,144.32,144.26,5.98]
[1718478621878,23.0788,144.36,144.26,0.34]
[1718478622080,5.64,144.35,144.27,0.17]
[1718478622382,7.15364288,144.38,144.3,5.64]
[1718478622583,5.64,144.37,144.31,5.64]
[1718478623287,23.0788,144.4,144.33,5.64]
[1718478623487,23.0788,144.4,144.32,0.34]
[1718478623488,5.64,144.39,144.34,5.64]
[1718478624008,5.64,144.39,144.33,5.64]
[1718478624315,5.64,144.36,144.32,15.1422]
[1718478624683,5.64,144.34,144.27,15.1422]
[1718478624901,5.64,144.33,144.27,15.1422]
[1718478625086,5.64,144.33,144.27,20.7822]
[1718478625519,5.64,144.32,144.27,15.1422]
[1718478625808,5.64,144.33,144.27,20.7822]
[1718478626187,5.64,144.33,144.27,15.1422]
[1718478626407,5.64,144.32,144.27,15.1422]
[1718478626792,5.64,144.28,144.23,21.6089]
[1718478628102,5.1285,144.3,144.19,16.1181044]
[1718478628103,5.64,144.27,144.19,16.1181044]
[1718478628283,5.64,144.27,144.21,5.64]
[1718478628491,5.64,144.26,144.21,5.64]
[1718478629190,5.64,144.27,144.21,5.64]
[1718478629397,5.64,144.27,144.22,0.17]
[1718478629732,5.64,144.29,144.23,5.64]
[1718478631902,2.7337,144.32,144.23,5.64]
[1718478632087,5.64,144.29,144.23,5.64]
[1718478632705,5.64,144.28,144.22,5.98]
[1718478633528,5.64,144.28,144.22,5.63073579]
[1718478634200,5.64,144.28,144.19,16.1181044]
[1718478634413,5.64,144.26,144.2,5.64]
[1718478635603,5.64,144.26,144.21,5.64]
[1718478635803,5.64,144.27,144.21,5.64]
[1718478636917,5.64,144.28,144.23,5.64]
[1718478638205,25.6394,144.31,144.23,5.64]
[1718478638403,5.64,144.29,144.23,5.64]
[1718478639020,6.5913,144.33,144.21,0.17]
[1718478639240,29.6637,144.33,144.25,21.4086]
[1718478639416,5.64,144.31,144.25,21.4086]
[1718478641309,8.2039,144.31,144.25,21.4086]
[1718478641627,5.64,144.3,144.25,21.4086]
[1718478642502,2.5639,144.32,144.25,21.4086]